bitfinex/quotes_ETHUSD_20240719
["timestamp","ask_amount","ask_price","bid_price","bid_amount"]
[1721370832863,2.90258,3445.2,3445.1,2.2922]
[1721370842814,2.90243,3445.4,3445.1,2.2922]
[1721370843212,3.0,3445.7,3445.1,2.2922]
[1721370843378,3.0,3445.7,3445.2,2.2804]
[1721370843707,3.0,3445.7,3445.3,2.2804]
[1721370843897,3.0,3445.7,3445.2,2.90258]
[1721370843898,7.45,3445.8,3445.5,2.2804]
[1721370844088,2.90193,3446.0,3445.5,2.2804]
[1721370844293,5.90176,3446.2,3445.5,2.2804]
[1721370844294,3.0,3445.9,3445.5,2.2804]
[1721370844491,2.90176,3446.2,3445.5,2.90232]
[1721370844680,2.90176,3446.2,3445.6,2.2804]
[1721370846071,7.45,3446.3,3445.6,6.0487949]
[1721370846274,10.35169,3446.3,3445.6,6.0487949]
[1721370846614,7.45,3446.3,3445.8,2.4643]
[1721370846972,10.35168,3446.3,3445.8,2.4643]
[1721370847365,2.90168,3446.3,3445.8,2.4643]
[1721370847987,2.90149,3446.5,3445.8,5.36636]
[1721370848188,3.0,3446.4,3445.8,5.903023]
[1721370848392,3.0,3446.4,3445.9,2.3894]
[1721370851119,3.0,3446.4,3445.9,5.29136]
[1721370852724,3.0,3446.4,3445.9,2.3894]
[1721370852883,0.590141,3446.3,3445.9,2.3894]
[1721370853090,3.491811,3446.3,3445.9,2.3894]
[1721370853290,2.90167,3446.3,3445.9,2.3894]
[1721370853488,5.90153,3446.5,3445.9,2.3894]
[1721370853822,2.90159,3446.4,3445.9,2.3894]
[1721370854591,2.90166,3446.3,3445.9,2.3894]
[1721370854989,2.90176,3446.2,3445.9,2.3894]
[1721370855190,2.90214,3445.8,3445.3,2.4546]
[1721370855629,2.9022,3445.7,3445.3,2.4546]
[1721370860755,2.90231,3445.6,3445.3,2.4546]
[1721370862351,2.90235,3445.5,3445.3,2.4546]
[1721370866231,2.90235,3445.5,3444.6,2.90307]
[1721370866232,0.580454,3445.5,3444.7,2.4598]
[1721370866433,2.9026,3445.2,3444.7,2.4598]
[1721370870526,2.90242,3445.4,3444.7,2.4598]
[1721370870775,2.90251,3445.3,3444.7,2.4598]
[1721370873335,2.90262,3445.2,3444.7,2.4598]
[1721370877676,2.90268,3445.1,3444.7,2.4598]
[1721370878869,2.90292,3444.8,3444.7,2.4598]
[1721370879183,3.193212,3444.8,3444.7,2.4598]
[1721370879475,2.90292,3444.8,3444.7,2.4598]
[1721370880507,2.90301,3444.7,3444.1,2.295]
[1721370881776,2.9031,3444.6,3444.1,2.295]
[1721370883790,10.35261,3445.2,3444.3,2.4644]
[1721370883962,10.35261,3445.2,3444.5,2.4644]
[1721370884367,2.90275,3445.0,3444.5,2.4644]
[1721370885154,10.35261,3445.2,3444.5,2.4644]
[1721370885596,10.35261,3445.2,3444.5,5.36757]
[1721370885906,10.35261,3445.2,3444.6,2.4398]
[1721370886201,2.90269,3445.1,3444.6,2.4398]
[1721370886692,7.45,3445.2,3444.6,2.4398]
[1721370886895,10.35264,3445.2,3444.7,2.4398]
[1721370887367,2.90267,3445.1,3444.7,2.4398]
[1721370891365,2.90276,3445.0,3444.7,2.4398]
[1721370902907,2.90259,3445.2,3444.7,2.4398]
[1721370903214,0.14771515,3445.1,3444.7,2.4398]
[1721370903386,2.90268,3445.1,3444.7,2.4398]
[1721370903588,2.90275,3445.0,3444.7,2.4398]
[1721370904309,2.90259,3445.2,3444.7,2.4398]
[1721370904500,3.05038488,3445.1,3444.7,2.4398]
[1721370904680,4.73025224,3445.3,3444.7,2.4398]
[1721370904681,3.05047488,3445.0,3444.7,2.4398]
[1721370904875,2.90276,3445.0,3444.7,2.4398]
[1721370905279,2.90263,3445.2,3444.7,2.4398]
[1721370905487,0.14771488,3445.1,3444.7,2.4398]
[1721370905687,0.14771488,3445.0,3444.7,2.4398]
[1721370905891,2.90263,3445.2,3444.7,2.4398]
[1721370906091,0.14771485,3445.1,3444.7,2.4398]
[1721370906315,0.14771485,3445.0,3444.7,2.4398]
[1721370906515,2.90263,3445.2,3444.7,2.4398]
[1721370906703,0.14771487,3445.1,3444.7,2.4398]
[1721370907039,0.14771487,3445.0,3444.7,2.4398]
[1721370907183,2.90263,3445.2,3444.7,2.4398]
[1721370907381,0.14771481,3445.1,3444.7,2.4398]
[1721370907609,0.14771481,3445.0,3444.7,2.4398]
[1721370907917,2.90263,3445.2,3444.7,2.4398]
[1721370908121,0.14771481,3445.1,3444.7,2.4398]
[1721370908276,3.05047481,3445.0,3444.7,2.4398]
[1721370908478,2.90276,3445.0,3444.7,2.4398]
[1721370908886,0.14771494,3444.9,3444.7,2.4398]
[1721370909105,2.90276,3445.0,3444.7,2.4398]
[1721370909279,0.14771495,3444.9,3444.7,2.4398]
[1721370909510,2.90276,3445.0,3444.7,2.4398]
[1721370909685,0.14771492,3444.9,3444.7,2.4398]
[1721370909885,2.90276,3445.0,3444.7,2.4398]
[1721370910127,0.14771494,3444.9,3444.7,2.4398]
[1721370910331,2.90276,3445.0,3444.7,2.4398]
[1721370910487,0.14771493,3444.9,3444.7,2.4398]
[1721370910704,2.90276,3445.0,3444.7,2.4398]
[1721370910905,0.1477149,3444.9,3444.7,2.4398]
[1721370911210,2.90276,3445.0,3444.7,2.4398]
[1721370911422,0.14771494,3444.9,3444.7,2.4398]
[1721370911593,2.90276,3445.0,3444.7,2.4398]
[1721370911798,0.14771495,3444.9,3444.7,2.4398]
[1721370912005,2.90276,3445.0,3444.7,2.4398]
[1721370912347,0.14771495,3444.9,3444.7,2.4398]
[1721370912523,0.14771495,3444.8,3444.7,2.4398]
[1721370913344,2.90292,3444.8,3444.7,2.4398]
[1721370913546,3.05063492,3444.8,3444.3,2.3185]
[1721370913736,0.14771492,3444.7,3444.3,2.3185]
[1721370917537,0.14771492,3444.7,3444.3,6.534379]
[1721370917724,2.90276,3445.0,3444.3,6.534379]
[1721370917930,0.14771724,3444.9,3444.4,2.4042]
[1721370918116,0.14771724,3444.8,3444.4,0.9523489]
[1721370918451,2.90276,3445.0,3444.5,2.4707]
[1721370918607,0.147716,3444.9,3444.5,2.4707]
[1721370918802,0.147716,3444.8,3444.5,2.4707]
[1721370919002,2.90276,3445.0,3444.5,2.4707]
[1721370919307,0.14771602,3444.9,3444.5,2.4707]
[1721370919661,0.14771602,3444.8,3444.5,3.39367889]
[1721370919950,0.14771602,3444.7,3444.5,3.39367889]
[1721370920098,2.90276,3445.0,3444.5,3.39367889]
[1721370920304,0.147716,3444.9,3444.5,3.39367889]
[1721370920499,0.147716,3444.8,3444.5,3.39367889]
[1721370920807,0.147716,3444.7,3444.5,3.39367889]
[1721370921007,4.73272266,3445.0,3444.5,3.39367889]
[1721370921213,0.14771606,3444.9,3444.5,3.39367889]
[1721370921564,0.14771606,3444.8,3444.5,3.39367889]
[1721370921710,0.14771606,3444.7,3444.5,3.39367889]
[1721370922050,4.73272266,3445.0,3444.5,3.39367889]
[1721370922203,0.14771602,3444.9,3444.5,3.39367889]
[1721370922404,0.14771602,3444.8,3444.6,0.62969289]
[1721370922599,0.14771602,3444.7,3444.6,0.62969289]
[1721370922852,1.82996266,3445.2,3444.6,2.95339289]
[1721370923014,0.14771363,3445.1,3444.6,2.95339289]
[1721370923230,1.82996266,3445.2,3444.6,2.95339289]
[1721370923231,0.14771363,3445.0,3444.7,2.90295]
[1721370923451,0.14771363,3444.9,3444.8,0.87595129]
[1721370923826,0.14771363,3444.9,3444.8,6.07947129]
[1721370925759,0.14771322,3444.9,3444.8,6.07947129]
[1721370929225,0.14771322,3444.9,3444.8,5.20352]
[1721370933762,3.0,3445.9,3444.1,2.90347]
[1721370933763,1.82999471,3445.5,3445.2,2.90253]
[1721370933945,0.14769237,3445.4,3445.3,2.3761]
[1721370934150,0.14769237,3445.4,3445.3,5.27858]
[1721370934456,1.82999471,3445.8,3445.3,5.27858]
[1721370934799,0.14768715,3445.7,3445.3,5.27858]
[1721370934944,0.14768715,3445.6,3445.3,5.27858]
[1721370935150,0.14768715,3445.5,3445.3,6.096691]
[1721370935350,1.82999471,3445.9,3445.3,6.096691]
[1721370935566,0.14768682,3445.8,3445.3,5.27858]
[1721370935765,0.14768684,3445.7,3445.3,5.27858]
[1721370936004,0.14768684,3445.6,3445.3,5.27858]
[1721370936301,0.14768697,3445.5,3444.2,3.02965822]
[1721370936501,2.90251,3445.3,3444.5,2.90315]
[1721370936648,3.05029152,3445.2,3444.5,2.90315]
[1721370936853,2.90259,3445.2,3444.5,2.90315]
[1721370937102,0.14770585,3445.1,3444.5,2.90315]
[1721370937393,2.90259,3445.2,3444.5,2.90315]
[1721370937687,0.14770621,3445.1,3444.5,2.90315]
[1721370937849,2.90259,3445.2,3444.5,2.90315]
[1721370938050,0.1477062,3445.1,3444.5,2.90315]
[1721370938394,2.90259,3445.2,3444.5,2.90315]
[1721370938580,0.1477062,3445.1,3444.5,2.90315]
[1721370938888,2.90259,3445.2,3444.5,2.90315]
[1721370939095,0.14770616,3445.1,3444.5,2.90315]
[1721370939301,2.90259,3445.2,3444.5,2.90315]
[1721370939585,0.147706,3445.1,3444.5,2.90315]
[1721370939795,2.90259,3445.2,3444.5,2.90315]
[1721370939966,0.147706,3445.1,3444.6,2.90307]
[1721370940165,2.90259,3445.2,3444.6,2.90307]
[1721370940486,0.14770599,3445.1,3444.6,2.90307]
[1721370940690,2.90259,3445.2,3444.6,2.90307]
[1721370940879,0.14770595,3445.1,3444.6,2.90307]
[1721370941074,2.90259,3445.2,3444.6,2.90307]
[1721370941285,0.14770599,3445.1,3444.7,2.903]
[1721370941470,4.73091887,3445.4,3444.8,2.4876]
[1721370941798,0.147706,3445.3,3444.8,2.4876]
[1721370942099,2.90242,3445.4,3444.8,2.4876]
[1721370942315,0.14769886,3445.3,3444.8,2.4876]
[1721370942601,2.90242,3445.4,3444.8,2.4876]
[1721370942752,0.14769883,3445.3,3444.8,2.4876]
[1721370943085,2.90242,3445.4,3444.8,5.39052]
[1721370943293,0.14769884,3445.3,3444.9,2.90284]
[1721370943597,2.90233,3445.5,3444.9,2.90284]
[1721370943794,0.14769883,3445.4,3444.9,2.90284]
[1721370943967,0.14769883,3445.3,3444.9,2.90284]
[1721370944172,4.41061104,3445.5,3444.9,2.90284]
[1721370944502,0.14769884,3445.4,3444.9,2.90284]
[1721370944698,0.14769884,3445.3,3444.9,2.90284]
[1721370944996,4.41061104,3445.5,3444.9,2.90284]
[1721370945183,0.54714911,3445.4,3444.9,2.90284]
[1721370945360,0.14769882,3445.3,3444.9,2.90284]
[1721370945555,0.39945029,3445.4,3444.9,2.90284]
[1721370945985,0.39945029,3445.4,3444.9,2.90134405]
[1721370946585,0.39945029,3445.4,3444.8,2.4876]
[1721370947097,0.39945029,3445.4,3444.8,5.39046]
[1721370948072,3.30188029,3445.4,3444.8,5.39046]
[1721370949899,0.80322306,3445.3,3444.8,5.39046]
[1721370951261,2.90243,3445.4,3444.8,5.39046]
[1721370955899,2.90234,3445.5,3444.9,2.90283]
[1721370956065,0.14769871,3445.4,3444.9,2.90283]
[1721370956264,2.90234,3445.5,3444.9,2.90283]
[1721370956565,0.14769854,3445.4,3445.1,2.4718]
[1721370956766,2.90225,3445.6,3445.1,2.4718]
[1721370956963,0.14769343,3445.5,3445.1,2.4718]
[1721370957157,2.90225,3445.6,3445.1,2.4718]
[1721370958593,7.45,3445.8,3445.1,2.85395752]
[1721370958907,0.14768571,3445.7,3445.4,2.4718]
[1721370959060,7.45,3445.8,3445.4,2.4718]
[1721370959264,0.14768414,3445.7,3445.4,2.4718]
[1721370959511,8.95817406,3445.8,3445.4,2.4718]
[1721370959660,0.14768488,3445.7,3445.4,2.4718]
[1721370959860,7.45,3445.8,3445.4,2.4718]
[1721370960102,0.14768482,3445.7,3445.4,2.4718]
[1721370960409,2.902,3445.9,3445.4,2.4718]
[1721370960567,0.1476848,3445.8,3445.4,2.4718]
[1721370960796,0.1476848,3445.7,3445.4,2.4718]
[1721370961141,2.902,3445.9,3445.4,2.4718]
[1721370961337,0.14768483,3445.8,3445.4,2.4718]
[1721370961494,0.14768483,3445.7,3445.4,2.4718]
[1721370961839,1.82777484,3446.0,3445.5,2.90227]
[1721370961995,0.14768447,3445.9,3445.5,2.90227]
[1721370962341,0.14768447,3445.8,3445.5,2.90227]
[1721370962510,3.0,3446.0,3445.5,2.90227]
[1721370962697,0.14768268,3445.9,3445.5,2.90227]
[1721370962897,0.14768268,3445.8,3445.5,2.90227]
[1721370963098,3.0,3446.0,3445.5,2.90227]
[1721370963323,0.14768274,3445.9,3445.5,2.90227]
[1721370963506,0.14768274,3445.8,3445.5,2.90227]
[1721370963706,3.0,3446.0,3445.5,2.90227]
[1721370963918,0.14768278,3445.9,3445.5,2.90227]
[1721370964106,0.14768278,3445.8,3445.5,2.90227]
[1721370964440,3.0,3446.0,3445.5,2.90227]
[1721370964600,0.14768264,3445.9,3445.5,2.90227]
[1721370964799,0.14768264,3445.8,3445.5,2.90227]
[1721370965019,5.90193,3446.0,3445.4,2.4718]
[1721370965225,4.11282463,3445.9,3445.4,2.4718]
[1721370965428,0.14768266,3445.8,3445.4,2.4718]
[1721370966411,0.14768266,3445.8,3445.5,0.1]
[1721370966834,3.0,3446.0,3445.5,0.1]
[1721370967151,0.14768271,3445.9,3445.5,0.1]
[1721370967445,0.93538793,3445.8,3445.5,0.1]
[1721370967645,0.78770522,3445.8,3445.5,0.1]
[1721370969348,2.90223,3445.7,3445.5,0.1]
[1721370969853,3.68978522,3445.8,3445.5,0.1]
[1721370971364,2.90217,3445.7,3445.5,0.1]
[1721370971564,4.02219611,3445.7,3445.5,0.1]
[1721370975545,12.40444825,3445.6,3445.5,0.1]
[1721370975744,2.90267,3445.1,3444.1,2.3316]
[1721370975947,2.90267,3445.1,3444.0,5.0]
[1721370975948,2.90324,3444.5,3444.0,5.0]
[1721370976144,2.9034,3444.3,3444.0,5.0]
[1721370976355,1.82837759,3444.7,3444.0,5.0]
[1721370976356,2.90344,3444.2,3444.0,5.0]
[1721370976535,2.90351,3444.1,3444.0,5.0]
[1721370976735,3.05127101,3444.1,3444.0,5.0]
[1721370976957,3.82953041,3444.1,3444.0,5.0]
[1721370977346,3.68176903,3444.1,3444.0,5.0]
[1721370981481,2.90351,3444.1,3444.0,5.0]
[1721370981834,5.80702,3444.1,3444.0,5.0]
[1721370982749,2.90351,3444.1,3444.0,5.1]
[1721370985185,5.80702,3444.1,3444.0,5.1]
[1721370985342,6.387722,3444.1,3444.0,5.1]
[1721370985551,3.484212,3444.1,3444.0,5.1]
[1721370986380,2.90351,3444.1,3444.0,5.1]
[1721370993620,3.0,3444.6,3444.0,5.1]
[1721370993958,10.35298,3444.8,3444.0,5.1]
[1721370993959,7.45,3444.8,3444.3,5.37984]
[1721370994104,2.90259,3445.2,3444.4,2.90321]
[1721370994304,2.90259,3445.2,3444.4,3.741555]
[1721370994610,2.90244,3445.4,3444.7,2.90299]
[1721370994611,2.90246,3445.4,3444.7,2.90299]
[1721370994807,2.9023,3445.6,3445.0,2.3192]
[1721370995321,2.90234,3445.5,3445.0,2.3192]
[1721370997609,2.90243,3445.4,3445.0,2.3192]
[1721370997917,2.9023,3445.6,3445.0,2.3192]
[1721370998337,2.90234,3445.5,3445.0,2.3192]
[1721371007637,2.90218,3445.7,3445.0,2.3192]
[1721371007955,5.902,3445.9,3445.2,2.90256]
[1721371008271,2.90184,3446.1,3445.2,2.90256]
[1721371008272,2.90209,3445.8,3445.2,2.90256]
[1721371008415,2.90209,3445.8,3445.0,5.22188]
[1721371009162,2.90209,3445.8,3445.1,2.90266]
[1721371009524,2.90209,3445.8,3445.2,2.90257]
[1721371010830,2.90217,3445.7,3445.1,0.812469]
[1721371011017,2.90217,3445.7,3445.1,3.715119]
[1721371011851,2.90217,3445.7,3445.2,0.1]
[1721371013033,2.90225,3445.6,3445.2,0.1]
[1721371016341,2.90194,3446.0,3445.2,0.1]
[1721371016560,0.55,3445.9,3445.2,0.1]
[1721371017168,0.55,3445.9,3445.6,0.1]
[1721371017370,0.345194,3445.8,3445.6,0.1]
[1721371017870,5.80432,3445.7,3445.6,0.1]
[1721371018757,2.9025,3445.3,3445.2,0.1]
[1721371019071,2.90335,3444.3,3444.1,2.393]
[1721371020478,2.90322,3444.5,3444.1,2.393]
[1721371021136,7.45,3444.9,3444.1,2.393]
[1721371021137,2.90309,3444.6,3444.1,2.393]
[1721371021575,2.90332,3444.4,3444.1,2.393]
[1721371022084,2.90335,3444.3,3444.1,2.393]
[1721371025898,2.90335,3444.3,3444.1,0.1]
[1721371026901,2.90302,3444.7,3444.1,0.1]
[1721371027124,2.90302,3444.7,3444.2,2.4911]
[1721371027310,10.35285,3444.9,3444.2,2.4911]
[1721371027311,2.90311,3444.6,3444.2,2.4911]
[1721371027746,2.90318,3444.5,3444.2,2.4911]
[1721371030748,2.90305,3444.7,3444.2,2.4911]
[1721371030956,2.90305,3444.7,3444.2,3.26021]
[1721371031261,2.9031,3444.6,3444.2,3.26021]
[1721371031550,2.9031,3444.6,3444.2,2.4911]
[1721371032812,2.8031,3444.6,3444.2,2.4911]
[1721371033022,2.90319,3444.5,3444.2,2.4911]
[1721371033327,2.90326,3444.4,3444.2,2.4911]
[1721371034444,2.90326,3444.4,3444.1,0.1]
[1721371035353,2.80343,3444.2,3444.1,0.1]
[1721371038654,2.90326,3444.4,3444.2,2.3081]
[1721371038858,2.9031,3444.6,3444.2,2.3081]
[1721371039429,2.90318,3444.5,3444.2,2.3081]
[1721371040323,2.90305,3444.7,3444.2,3.349277]
[1721371040513,2.90289,3444.9,3444.2,3.349277]
[1721371040716,3.0,3444.8,3444.3,2.472]
[1721371040945,2.90278,3445.0,3444.3,2.472]
[1721371041456,2.90284,3444.9,3444.3,2.472]
[1721371041633,2.90284,3444.9,3444.3,3.9240177]
[1721371042018,2.90293,3444.8,3444.3,3.9240177]
[1721371042960,2.90301,3444.7,3444.3,3.9240177]
[1721371043138,2.90326,3444.4,3444.3,2.472]
[1721371043333,2.90326,3444.4,3444.1,0.1]
[1721371043539,2.90343,3444.2,3444.1,0.1]
[1721371047265,2.80343,3444.2,3444.1,0.1]
[1721371048240,2.90301,3444.7,3444.2,2.4191]
[1721371049451,2.90269,3445.1,3444.4,2.4074]
[1721371049838,2.90269,3445.1,3444.4,5.31066]
[1721371050560,2.90276,3445.0,3444.4,5.31066]
[1721371050770,2.90276,3445.0,3444.5,0.531066]
[1721371050965,2.90262,3445.2,3444.6,2.3047]
[1721371051372,2.90252,3445.3,3444.6,2.3047]
[1721371051373,2.90268,3445.1,3444.6,2.3047]
[1721371052955,2.80268,3445.1,3444.6,2.3047]
[1721371053382,2.80268,3445.1,3444.6,2.8785926]
[1721371053680,2.90252,3445.3,3444.6,3.4769626]
[1721371053879,2.90252,3445.3,3444.7,2.3047]
[1721371054650,2.90252,3445.3,3444.7,5.20766]
[1721371055397,2.90235,3445.5,3444.8,2.90292]
[1721371055549,2.90242,3445.4,3444.9,0.34768126]
[1721371055749,2.90242,3445.4,3444.8,5.20762]
[1721371056056,13.3523,3445.6,3444.8,5.20762]
[1721371056259,10.45,3445.6,3444.9,2.3047]
[1721371056459,2.90239,3445.5,3444.9,5.20751]
[1721371056669,2.90239,3445.5,3445.0,0.811043]
[1721371056859,2.90239,3445.5,3445.3,0.1]
[1721371058078,2.90219,3445.7,3445.3,0.1]
[1721371059686,2.90226,3445.6,3445.3,0.1]
[1721371060687,2.90226,3445.6,3445.4,2.4714]
[1721371061483,2.90233,3445.5,3445.4,2.4714]
[1721371062200,2.80233,3445.5,3445.4,2.4714]
[1721371062883,2.90217,3445.7,3445.4,2.4714]
[1721371063087,2.90225,3445.6,3445.4,2.4714]
[1721371063866,2.90208,3445.8,3445.4,2.4714]
[1721371064574,2.90217,3445.7,3445.4,2.4714]
[1721371065563,2.90226,3445.6,3445.4,2.4714]
[1721371069179,2.80226,3445.6,3445.4,2.4714]
[1721371072086,2.70226,3445.6,3445.4,2.4714]
[1721371074403,2.60226,3445.6,3445.4,2.4714]
[1721371074605,2.90213,3445.8,3445.4,2.4714]
[1721371075297,2.90216,3445.7,3445.4,2.4714]
[1721371075476,2.90216,3445.7,3445.6,0.1]
[1721371078294,2.90209,3445.8,3445.6,0.1]
[1721371078502,2.90209,3445.8,3445.6,0.2]
[1721371082605,2.80209,3445.8,3445.6,0.2]
[1721371083240,2.90216,3445.7,3445.6,0.2]
[1721371091338,2.80216,3445.7,3445.6,0.2]
[1721371091542,2.94985276,3445.7,3445.6,0.2]
[1721371092136,5.85201276,3445.7,3445.6,0.2]
[1721371092330,13.61245629,3445.7,3445.6,0.2]
[1721371092543,16.3618098,3445.7,3445.6,0.2]
[1721371092731,18.49072392,3445.7,3445.6,0.2]
[1721371093137,18.49302605,3445.7,3445.6,0.2]
[1721371093647,16.3618098,3445.7,3445.6,0.2]
[1721371095534,18.87936018,3445.7,3445.6,0.2]
[1721371096341,18.8809733,3445.7,3445.6,0.2]
[1721371096868,18.88100172,3445.7,3445.6,0.2]
[1721371098238,18.78100172,3445.7,3445.6,0.2]
[1721371099471,16.26183822,3445.7,3445.6,0.2]
[1721371099660,18.78069508,3445.7,3445.6,0.2]
[1721371100480,16.26183822,3445.7,3445.6,0.2]
[1721371100835,18.78069508,3445.7,3445.6,0.2]
[1721371101030,18.68069508,3445.7,3445.6,0.2]
[1721371101243,16.16183822,3445.7,3445.6,0.2]
[1721371102455,16.06183822,3445.7,3445.6,0.2]
[1721371103192,13.57833822,3445.7,3445.6,0.2]
[1721371103650,15.70976111,3445.7,3445.6,0.2]
[1721371103839,15.60976111,3445.7,3445.6,0.2]
[1721371105091,15.50976111,3445.7,3445.6,0.2]
[1721371105766,13.37833822,3445.7,3445.6,0.2]
[1721371106063,15.50958972,3445.7,3445.6,0.2]
[1721371106272,15.40958972,3445.7,3445.6,0.2]
[1721371106742,15.40961607,3445.7,3445.6,0.2]
[1721371106944,15.66013822,3445.7,3445.6,0.2]
[1721371108548,16.36013822,3445.7,3445.6,0.2]
[1721371110280,16.26013822,3445.7,3445.6,0.2]
[1721371110859,8.70726,3445.4,3445.3,0.1]
[1721371111062,9.40498118,3445.4,3445.3,0.1]
[1721371111249,12.40498118,3445.4,3445.3,0.1]
[1721371112963,3.14772118,3445.4,3445.3,2.5311]
[1721371113167,4.87639499,3445.4,3445.3,2.5311]
[1721371113507,6.05014118,3445.4,3445.3,2.5311]
[1721371114199,8.95256118,3445.4,3445.3,2.5311]
[1721371114356,10.77881499,3445.4,3445.3,2.5311]
[1721371115058,10.77881654,3445.4,3445.3,2.5311]
[1721371115688,10.77879886,3445.4,3445.3,2.5311]
[1721371118577,4.87637886,3445.4,3445.3,2.5311]
[1721371118813,3.05014273,3445.4,3445.3,2.78421]
[1721371120109,3.05014273,3445.4,3445.3,2.88421]
[1721371120317,0.14772273,3445.4,3445.3,2.88421]
[1721371120513,1.82632038,3445.9,3445.3,2.88421]
[1721371120683,2.90217,3445.7,3445.5,2.3343]
[1721371121878,2.90225,3445.6,3445.5,2.3343]
[1721371122081,3.04994949,3445.6,3445.5,2.3343]
[1721371122415,3.04994608,3445.6,3445.5,2.3343]
[1721371122628,2.90225,3445.6,3445.5,2.3343]
[1721371123206,3.04994467,3445.6,3445.5,2.3343]
[1721371123586,1.82617375,3445.9,3445.5,2.58773]
[1721371123901,5.90164,3446.4,3445.5,2.58773]
[1721371123902,2.9021,3445.8,3445.5,2.58773]
[1721371124096,4.72802375,3446.1,3445.5,2.58773]
[1721371124420,0.14768355,3446.0,3445.5,5.49006]
[1721371124718,4.72802375,3446.1,3445.7,2.3961]
[1721371124719,0.14768355,3445.9,3445.7,2.3961]
[1721371124928,2.90185,3446.1,3445.7,2.3961]
[1721371125099,0.14768299,3446.0,3445.7,2.3961]
[1721371125302,0.14768299,3445.9,3445.7,2.3961]
[1721371125523,2.90185,3446.1,3445.7,2.3961]
[1721371125728,0.14768319,3446.0,3445.7,2.961294]
[1721371125897,2.90185,3446.1,3445.7,2.961294]
[1721371126104,0.14767644,3446.0,3445.7,2.961294]
[1721371126316,2.90185,3446.1,3445.7,2.961294]
[1721371127823,2.90175,3446.2,3445.7,2.961294]
[1721371128027,2.90175,3446.2,3445.9,2.3898]
[1721371128632,2.90151,3446.5,3445.9,2.3898]
[1721371129019,2.90157,3446.4,3445.9,2.3898]
[1721371131034,2.90157,3446.4,3445.9,2.4898]
[1721371132754,2.90167,3446.3,3445.9,2.4898]
[1721371132920,2.90167,3446.3,3445.9,3.09016484]
[1721371133958,2.90141,3446.6,3446.0,2.2852]
[1721371133959,2.90153,3446.5,3446.0,2.2852]
[1721371134713,2.90153,3446.5,3446.4,0.1]
[1721371134915,2.90153,3446.5,3446.4,2.585]
[1721371140255,2.90153,3446.5,3446.4,0.1]
[1721371140436,3.725834,3446.5,3446.4,0.1]
[1721371140639,3.625834,3446.5,3446.4,0.1]
[1721371141423,2.80153,3446.5,3446.4,0.1]
[1721371142072,2.70153,3446.5,3446.4,0.1]
[1721371142564,5.60309,3446.5,3446.4,0.1]
[1721371143361,5.50309,3446.5,3446.4,0.1]
[1721371144559,5.40309,3446.5,3446.4,0.1]
[1721371144763,5.40309,3446.5,3446.4,2.5342]
[1721371145865,5.30309,3446.5,3446.4,2.5342]
[1721371146152,2.40153,3446.5,3446.4,2.5342]
[1721371147355,2.30153,3446.5,3446.4,2.5342]
[1721371148345,2.20153,3446.5,3446.4,2.5342]
[1721371150367,2.90133,3446.7,3446.4,2.5342]
[1721371151070,2.90156,3446.5,3446.4,2.5342]
[1721371151534,2.80156,3446.5,3446.4,2.5342]
[1721371153038,2.70156,3446.5,3446.4,2.5342]
[1721371154165,2.60156,3446.5,3446.4,2.5342]
[1721371155411,2.50156,3446.5,3446.4,2.5342]
[1721371156590,2.40156,3446.5,3446.4,2.5342]
[1721371156749,5.30312,3446.5,3446.4,0.1]
[1721371156950,8.91728586,3446.5,3446.4,0.1]
[1721371157288,12.07015794,3446.5,3446.4,0.1]
[1721371157491,17.19691961,3446.5,3446.4,0.1]
[1721371157795,14.97015794,3446.5,3446.4,0.1]
[1721371158097,8.21632,3446.0,3445.9,0.1]
[1721371158304,12.08753408,3446.0,3445.9,0.1]
[1721371158476,15.08753408,3446.0,3445.9,0.1]
[1721371158785,15.63753408,3446.0,3445.9,0.1]
[1721371159997,17.76635126,3446.0,3445.9,0.1]
[1721371161262,15.63753408,3446.0,3445.9,0.1]
[1721371161458,17.76639096,3446.0,3445.9,0.1]
[1721371161894,15.63753408,3446.0,3445.9,0.1]
[1721371162053,17.76641083,3446.0,3445.9,0.1]
[1721371162251,15.63753408,3446.0,3445.9,0.1]
[1721371162562,17.76648757,3446.0,3445.9,0.1]
[1721371162883,15.63753408,3446.0,3445.9,0.1]
[1721371165164,15.63753408,3446.0,3445.9,0.2]
[1721371166050,15.63753408,3446.0,3445.4,0.2]
[1721371166051,5.80466,3445.5,3445.4,0.2]
[1721371166283,19.7168885,3445.5,3445.4,0.2]
[1721371166860,17.58769208,3445.5,3445.4,0.2]
[1721371167274,19.71586272,3445.5,3445.4,0.2]
[1721371167895,19.71586138,3445.5,3445.4,0.2]
[1721371168082,18.30029794,3445.5,3445.4,0.2]
[1721371169759,11.60968,3445.4,3444.4,0.0947006]
[1721371169960,3.69767208,3445.4,3444.4,0.0947006]
[1721371170182,5.80634,3444.5,3444.4,0.0947006]
[1721371170599,6.35634,3444.5,3444.4,0.0947006]
[1721371170957,6.25634,3444.5,3444.4,0.0947006]
[1721371173984,6.25634,3444.5,3444.4,0.1947006]
[1721371175243,2.90302,3444.7,3444.4,0.1947006]
[1721371175390,2.90302,3444.7,3444.5,2.4439]
[1721371176712,2.90309,3444.6,3444.5,2.4439]
[1721371179439,2.90292,3444.8,3444.5,2.70776006]
[1721371179645,5.90303,3444.7,3444.5,2.70776006]
[1721371180051,5.90303,3444.7,3444.5,2.4439]
[1721371181945,7.45,3445.1,3444.5,2.4439]
[1721371181946,10.35269,3445.1,3444.5,2.4439]